bitfinex/quotes_ETHUSD_20220106
["timestamp","ask_amount","ask_price","bid_price","bid_amount"]
[1641464301379,7.9,3331.4,3330.9,0.66484]
[1641464301591,0.432,3331.3,3330.9,0.66484]
[1641464301777,1.432,3331.3,3331.0,0.0022737]
[1641464302177,0.432,3331.3,3331.0,0.0022737]
[1641464302453,0.432,3331.3,3330.9,0.66484]
[1641464302454,12.95,3331.2,3330.9,1.37e-05]
[1641464302757,1.432,3331.1,3330.9,1.37e-05]
[1641464302954,2.6771,3331.1,3330.9,1.37e-05]
[1641464303155,0.7511,3330.9,3329.5,11.01291854]
[1641464303353,0.432,3330.8,3329.5,11.01291854]
[1641464303553,17.762,3330.8,3330.0,0.00568423]
[1641464303753,0.432,3330.8,3330.0,0.00568423]
[1641464303953,1.0,3330.7,3330.0,0.00568423]
[1641464304156,0.732,3330.6,3329.9,0.00625266]
[1641464304356,0.732,3330.6,3330.0,2.0]
[1641464304357,0.432,3330.6,3330.0,2.0]
[1641464304759,0.432,3330.6,3330.1,0.00511581]
[1641464305360,1.48794649,3330.2,3329.9,0.00625266]
[1641464305557,1.78794649,3330.2,3329.9,0.00625266]
[1641464306179,3.21994649,3330.2,3329.9,0.00625266]
[1641464306376,2.21994649,3330.2,3329.9,0.00625266]
[1641464306578,1.0,3330.1,3329.2,0.01023162]
[1641464306777,1.48794649,3330.0,3329.2,0.01023162]
[1641464307177,1.78794649,3330.0,3329.2,0.01023162]
[1641464307581,1.18321,3329.9,3329.2,0.01023162]
[1641464307778,20.00115649,3329.9,3329.2,0.01023162]
[1641464307981,0.3,3329.7,3329.1,0.01080004]
[1641464308178,1.18338,3329.6,3329.1,0.01080004]
[1641464308379,5.4,3329.4,3329.1,0.01080004]
[1641464308578,8.65,3329.2,3328.5,4.07291854]
[1641464308780,21.70854067,3329.1,3328.5,4.07291854]
[1641464308978,23.07972806,3329.1,3328.6,0.00284212]
[1641464309181,5.4,3328.7,3326.1,6.94]
[1641464309379,5.4,3328.7,3327.7,4.07700609]
[1641464309380,5.4,3328.2,3327.7,4.07700609]
[1641464309579,0.432,3328.1,3327.7,4.07700609]
[1641464309778,0.75174,3328.0,3327.7,4.07700609]
[1641464310025,0.732,3327.9,3327.8,6.41523504]
[1641464310323,0.3,3327.9,3327.8,1.11523504]
[1641464310528,0.432,3328.9,3327.8,1.11523504]
[1641464310723,0.432,3328.9,3328.8,1.83763056]
[1641464310924,0.432,3328.9,3328.8,2.85628151]
[1641464311326,0.432,3328.9,3328.8,1.01865095]
[1641464311922,0.432,3328.9,3328.1,0.05345298]
[1641464312122,0.03972249,3329.5,3328.1,0.05345298]
[1641464312323,0.00113685,3328.8,3328.2,0.00227369]
[1641464312524,0.00113685,3328.8,3328.6,1.69539496]
[1641464312723,0.00568423,3329.6,3328.6,1.69539496]
[1641464312923,0.00568423,3329.6,3328.6,1.24805095]
[1641464313131,0.00511581,3329.5,3328.6,1.24805095]
[1641464313428,0.00454739,3329.4,3328.6,1.24805095]
[1641464313886,2.48328,3329.7,3328.6,1.24805095]
[1641464313887,0.00397896,3329.3,3328.6,1.24805095]
[1641464314292,0.00341054,3329.2,3328.6,1.24805095]
[1641464314691,0.00284212,3329.1,3328.5,1.72155212]
[1641464314896,0.00284212,3329.1,3328.8,1.15968412]
[1641464315093,0.03051052,3329.8,3329.0,11.66193489]
[1641464315291,6.5088611,3330.2,3329.6,1.40884813]
[1641464315492,0.03698911,3330.5,3329.0,11.66193489]
[1641464315493,0.00568423,3329.6,3329.0,11.66193489]
[1641464315698,0.00568423,3329.6,3329.1,3.6024]
[1641464315894,0.00511581,3329.5,3329.1,3.6024]
[1641464316294,0.00454739,3329.4,3329.1,3.6024]
[1641464316494,0.00454739,3329.4,3329.1,4.93541247]
[1641464316695,1.93717296,3330.5,3329.1,0.00173714]
[1641464316696,0.00397896,3329.3,3329.1,0.00173714]
[1641464316897,0.00397896,3329.3,3329.1,0.00173717]
[1641464317097,0.00341054,3329.2,3329.1,0.00173717]
[1641464317828,4.30341054,3329.2,3329.1,0.00173717]
[1641464318024,0.00341054,3329.2,3329.1,0.00173717]
[1641464318230,1.00341054,3329.2,3329.1,0.00173717]
[1641464318625,0.00341054,3329.2,3329.1,0.00173717]
[1641464320126,5.35,3329.1,3328.4,0.04125586]
[1641464320334,0.00341054,3329.2,3328.4,0.04125586]
[1641464320335,0.03353443,3329.2,3328.4,0.04125586]
[1641464320527,0.00227369,3329.0,3328.4,0.04125586]
[1641464320830,0.00170527,3328.9,3328.4,0.04125586]
[1641464321292,0.00113685,3328.8,3328.2,0.00227369]
[1641464321690,0.00341054,3329.2,3328.1,0.00284212]
[1641464321994,0.3,3328.8,3328.1,0.00284212]
[1641464322390,1.3,3328.8,3328.1,0.00284212]
[1641464322690,1.3,3328.8,3328.7,1.65118749]
[1641464323091,0.30113685,3328.8,3328.7,1.65118749]
[1641464323290,1.20313685,3328.8,3328.7,1.65118749]
[1641464323496,0.90313685,3328.8,3328.7,1.65118749]
[1641464323891,0.89501277,3328.8,3328.7,1.65118749]
[1641464325124,0.89501277,3328.8,3328.1,0.00284212]
[1641464325324,0.361,3328.7,3328.1,0.00284212]
[1641464325525,1.19501277,3328.6,3327.8,0.00568424]
[1641464325726,0.89501277,3328.5,3327.8,0.00568424]
[1641464325924,0.89501277,3328.3,3327.8,0.00568424]
[1641464326128,0.89501277,3328.1,3327.6,1.80730557]
[1641464326326,0.89501277,3327.9,3327.1,0.0096632]
[1641464326527,0.89501277,3327.9,3327.7,0.00625266]
[1641464326726,0.89501277,3327.9,3327.1,0.0096632]
[1641464326926,1.64675277,3327.9,3327.1,0.0096632]
[1641464327126,2.64675277,3327.9,3327.1,0.0096632]
[1641464327426,1.64675277,3327.9,3327.1,0.0096632]
[1641464327630,0.89501277,3327.7,3327.1,1.61549457]
[1641464327829,1.64673277,3327.6,3327.1,0.0096632]
[1641464328028,1.67975854,3327.6,3327.2,0.00909478]
[1641464328228,1.67975854,3327.6,3327.1,0.0096632]
[1641464328699,0.89501277,3327.4,3327.1,0.0096632]
[1641464328896,0.89501277,3327.3,3327.0,0.6145032]
[1641464329089,0.89614961,3327.3,3327.0,0.6145032]
[1641464329689,0.89614961,3327.3,3327.0,2.34479606]
[1641464330089,0.89614961,3327.3,3327.0,2.32637321]
[1641464332529,4.961e-05,3327.3,3327.2,12.96228068]
[1641464332733,0.70614323,3328.8,3327.3,12.95]
[1641464333128,0.00568424,3328.3,3327.4,1.0]
[1641464333331,0.00568424,3328.3,3327.3,12.95]
[1641464333526,0.00511582,3328.2,3327.3,12.95]
[1641464333929,0.00454739,3328.1,3328.0,5.307564]
[1641464334327,0.00454739,3328.1,3328.0,1.907564]
[1641464334729,0.00454739,3328.1,3327.6,1.36456554]
[1641464335130,0.00397897,3328.0,3327.6,1.36456554]
[1641464335528,0.75145,3328.4,3327.6,1.36456554]
[1641464335529,0.00341055,3327.9,3327.6,1.36456554]
[1641464335731,0.00341055,3327.9,3327.1,4.8094584]
[1641464335933,0.78944974,3328.3,3327.8,2.13142626]
[1641464336180,0.78949436,3328.3,3327.8,2.13142626]
[1641464336373,0.3,3328.2,3327.8,2.13142626]
[1641464336772,0.00563462,3328.1,3327.0,4.56608035]
[1641464336973,0.00563462,3328.1,3327.2,0.7514506]
[1641464337174,0.0050662,3328.0,3327.2,0.7514506]
[1641464337575,0.00449778,3327.9,3327.2,0.7514506]
[1641464337774,0.00449778,3327.9,3327.8,1.82477517]
[1641464337973,1.08746617,3328.2,3327.8,1.82477517]
[1641464338177,0.70614323,3328.8,3327.9,4.49674368]
[1641464338377,0.00563462,3328.1,3327.9,4.49674368]
[1641464338574,0.00563462,3328.1,3327.8,2.57610367]
[1641464338781,0.0050662,3328.0,3327.8,2.57610367]
[1641464339178,0.00449778,3327.9,3327.8,2.57610367]
[1641464339475,0.00449778,3327.9,3327.8,10.52610367]
[1641464339676,0.00449778,3327.9,3327.8,9.77477517]
[1641464340135,0.00449778,3327.9,3327.8,1.82477517]
[1641464340732,0.00449778,3327.9,3327.1,1.28225155]
[1641464341230,0.70614323,3328.8,3327.1,1.2416]
[1641464341231,0.00392935,3327.8,3327.1,1.2416]
[1641464341632,0.00336093,3327.7,3327.3,1.17347308]
[1641464341835,0.00336093,3327.7,3327.6,2.06694181]
[1641464342031,0.75152,3328.0,3327.6,2.06694181]
[1641464342230,0.3,3327.9,3327.6,2.06694181]
[1641464342434,1.05161,3327.9,3327.6,2.06694181]
[1641464343032,1.05161,3327.9,3327.0,6.29018035]
[1641464343234,1.05161,3327.9,3327.0,2.59608035]
[1641464343235,9.90950893,3327.8,3327.0,2.59608035]
[1641464343674,0.00336093,3327.7,3327.0,2.59608035]
[1641464343874,6.51222203,3327.7,3327.0,2.59608035]
[1641464344074,0.75437251,3327.6,3327.0,2.59608035]
[1641464344478,0.00222408,3327.5,3327.0,2.59608035]
[1641464344674,8.4607211,3327.7,3327.5,5.4]
[1641464344875,8.4607211,3327.7,3327.4,2.9288092]
[1641464344876,6.5088611,3327.7,3327.4,2.9288092]
[1641464345075,6.5088611,3327.7,3327.5,0.7514057]
[1641464345276,6.5088611,3327.7,3327.4,2.9288092]
[1641464345475,3.40064783,3327.5,3327.4,2.9288092]
[1641464346077,6.5088611,3327.6,3327.5,12.0]
[1641464346376,6.3375611,3327.6,3327.5,0.7513411]
[1641464346576,0.00113685,3327.7,3327.5,0.7513411]
[1641464347186,0.00113685,3327.7,3327.4,2.9288092]
[1641464347627,0.00113685,3327.7,3327.4,1.63550233]
[1641464348727,0.00113685,3327.7,3327.4,2.66556279]
[1641464351173,0.00113685,3327.7,3327.5,1.87182445]
[1641464351973,0.00113685,3327.7,3327.0,2.16786659]
[1641464352176,0.00284212,3327.6,3327.0,3.54840083]
[1641464352376,0.00284212,3327.6,3327.4,2.01001796]
[1641464352574,0.00227369,3327.5,3327.4,2.01001796]
[1641464354178,6.59257347,3327.9,3327.5,14.31005943]
[1641464354179,5.10057347,3327.9,3327.5,14.31005943]
[1641464354379,8.10936448,3328.4,3327.8,0.01262927]
[1641464354578,8.10936448,3328.4,3328.3,12.96290929]
[1641464354783,0.70614323,3328.8,3328.3,12.96290929]
[1641464354784,0.70614323,3328.8,3328.3,14.199641]
[1641464355032,0.70614323,3328.8,3328.6,0.7511259]
[1641464355635,0.70614323,3328.8,3328.7,8.13814238]
[1641464355833,0.70614323,3328.8,3328.7,1.98814238]
[1641464356032,0.71353274,3328.8,3328.7,1.98814238]
[1641464356334,0.62924345,3328.8,3328.7,7.53814238]
[1641464356535,0.62924345,3328.8,3328.7,1.98814238]
[1641464356736,3.59185581,3328.8,3328.7,1.98814238]
[1641464356934,3.89185581,3328.8,3328.7,1.98814238]
[1641464357338,3.59185581,3328.8,3328.7,1.98814238]
[1641464357534,0.62924345,3328.8,3328.7,1.98814238]
[1641464358134,0.62924345,3328.8,3328.6,0.7511259]
[1641464358684,0.00682108,3328.7,3328.6,0.7511259]
[1641464359780,0.00682108,3328.7,3327.7,3.7892]
[1641464359985,0.00682108,3328.7,3327.6,1.1758]
[1641464360181,0.01254501,3328.5,3327.0,2.16786659]
[1641464360382,0.361,3328.4,3327.0,2.16786659]
[1641464360581,1.4373032,3328.4,3327.0,2.16786659]
[1641464360780,17.33454739,3328.3,3327.0,2.16786659]
[1641464360981,0.75178,3327.6,3327.0,2.16786659]
[1641464361182,1.50349,3327.5,3327.0,2.16786659]
[1641464361382,1.80349,3327.5,3327.0,2.16786659]
[1641464361985,1.48411105,3327.4,3327.0,2.16786659]
[1641464362628,2.48411105,3327.4,3327.0,2.16786659]
[1641464362824,1.48411105,3327.4,3327.0,2.16786659]
[1641464363124,3.23586105,3327.4,3327.0,2.16786659]
[1641464363325,2.23586105,3327.4,3327.0,2.16786659]
[1641464363725,3.23586105,3327.4,3327.0,2.16786659]
[1641464363924,1.75175,3327.4,3327.0,2.16786659]
[1641464364925,0.75175,3327.4,3327.0,2.16786659]
[1641464365325,1.75175,3327.4,3327.0,2.16786659]
[1641464366488,3.40140357,3327.3,3327.0,2.16786659]
[1641464366689,4.15311357,3327.3,3327.0,2.16786659]
[1641464366889,4.45311357,3327.3,3327.0,2.16786659]
[1641464367889,3.40140357,3327.2,3327.0,2.16786659]
[1641464368089,3.40140357,3327.2,3327.1,16.2459507]
[1641464368290,3.40140357,3327.2,3327.1,15.11757845]
[1641464368490,3.40140357,3327.2,3327.0,2.16786659]
[1641464369692,0.75171,3327.4,3327.0,2.16786659]
[1641464369693,3.40140357,3327.3,3327.0,2.16786659]
[1641464369921,3.70140357,3327.3,3327.1,0.00085193]
[1641464370327,0.3,3327.3,3327.2,4.55170527]
[1641464370524,0.3,3327.3,3327.2,0.00170527]
[1641464373678,0.65451,3327.4,3327.2,0.00170527]
[1641464373878,0.7514,3327.6,3327.2,0.00170527]
[1641464374085,1.48411105,3327.8,3327.6,0.75132]
[1641464374280,0.00113685,3327.7,3327.6,0.75132]
[1641464374581,0.00113685,3327.7,3327.6,12.84758797]
[1641464374981,0.3,3327.8,3327.3,8.45]
[1641464375179,0.3,3327.8,3327.3,9.20139]
[1641464375386,0.2365579,3327.9,3327.4,0.00170527]
[1641464375781,0.2365579,3327.9,3327.2,0.00284212]
[1641464376981,0.5365579,3327.9,3327.2,0.00284212]
[1641464377832,3.49917026,3327.9,3327.2,0.00284212]
[1641464378433,3.38487348,3327.9,3327.2,0.00284212]
[1641464379032,3.38487348,3327.9,3327.6,0.7513135]
[1641464379634,0.42226112,3327.9,3327.6,0.7513135]
[1641464380338,3.95014981,3328.2,3327.8,1.07235847]
[1641464380544,3.95014981,3328.2,3328.1,0.7512288]
[1641464380838,3.95014981,3328.7,3328.1,0.7512288]
[1641464381038,4.70137981,3328.7,3327.8,1.07235847]
[1641464381286,4.70706404,3328.7,3327.8,0.01214503]
[1641464381486,5.45841404,3328.7,3327.4,0.75137]
[1641464381681,5.45841404,3328.7,3327.2,0.00284212]
[1641464381682,1.50826423,3328.7,3327.2,0.00284212]
[1641464381888,1.45961815,3328.7,3327.5,0.00113685]
[1641464382083,1.45961815,3328.7,3327.2,0.00284212]
[1641464382289,1.80029549,3328.3,3327.1,3.10208884]
[1641464382485,2.85175549,3328.3,3327.2,0.00284212]
[1641464382787,2.85175549,3328.3,3327.0,0.16786659]
[1641464382788,0.43584212,3328.2,3327.1,0.00341054]
[1641464382986,0.50702951,3328.2,3327.1,0.00341054]
[1641464383188,0.00227369,3328.1,3327.1,0.00341054]
[1641464383392,3.50352,3327.9,3327.1,0.00341054]
[1641464383586,0.75195,3327.3,3326.2,4.07950404]
[1641464383787,0.433,3327.2,3326.2,4.07950404]
[1641464383986,0.433,3327.2,3326.3,0.00454739]
[1641464384186,8.0,3327.1,3326.0,10.37866843]
[1641464384385,0.433,3327.0,3326.0,10.37866843]
[1641464384587,0.433,3327.0,3326.1,0.00113685]
[1641464384588,0.752,3326.6,3326.1,0.00113685]
[1641464384794,0.78600082,3326.6,3326.1,0.00113685]
[1641464385026,0.00113685,3326.5,3326.1,0.00113685]
[1641464385330,0.00113685,3326.5,3326.0,10.37866843]
[1641464385526,0.00170527,3326.4,3326.0,10.37866843]
[1641464385730,1.84308671,3326.4,3326.0,4.36199843]
[1641464385927,1.80519685,3326.3,3326.0,4.36199843]
[1641464386127,0.75203,3326.2,3326.0,4.36199843]
[1641464386327,2.05203,3326.2,3326.0,4.36199843]
[1641464386530,1.05203,3326.2,3326.0,4.36199843]
[1641464386729,0.75203,3326.2,3326.0,4.36199843]
[1641464387329,3.40245737,3326.1,3326.0,4.36199843]
[1641464388131,3.70245737,3326.1,3326.0,4.36199843]
[1641464389590,3.40245737,3326.1,3326.0,4.36199843]
[1641464390889,3.70245737,3326.1,3326.0,4.36199843]
[1641464391091,3.70245737,3326.1,3326.0,4.363016]
[1641464394523,3.40245737,3326.1,3326.0,4.363016]
[1641464394822,3.40245737,3326.1,3326.0,6.50303943]
[1641464395723,3.70245737,3326.1,3326.0,6.50303943]
[1641464396180,3.70245737,3326.1,3326.0,4.363016]
[1641464399476,4.70245737,3326.1,3326.0,4.363016]
[1641464399776,4.70245737,3326.1,3325.3,0.04004542]
[1641464399777,7.35,3326.0,3325.3,0.04004542]
[1641464400034,2.3440986,3325.4,3325.0,0.66484]
[1641464400238,0.75223,3325.2,3325.0,0.66484]
[1641464400438,1.05223,3325.2,3325.0,0.66484]
[1641464400640,1.05223,3325.2,3324.4,0.04741094]
[1641464401036,1.05223,3325.2,3324.5,0.00909477]
[1641464401037,0.75225,3324.9,3324.5,0.00909477]
[1641464401244,0.75225,3324.9,3324.4,0.04741094]
[1641464401245,1.18537,3324.8,3324.0,0.6]
[1641464401440,1.48707527,3324.8,3324.0,0.6]
[1641464401635,0.00113684,3324.7,3324.1,0.0022737]
[1641464401837,0.433,3324.6,3324.1,0.0022737]
[1641464402436,0.56633,3324.4,3324.1,0.0022737]
[1641464402640,0.3,3324.4,3324.2,1.41430426]
[1641464402837,3.40245737,3324.5,3324.2,1.41430426]
[1641464403136,3.38927906,3324.5,3324.3,0.00113685]
[1641464403336,3.38927906,3324.5,3324.4,7.6139265]
[1641464403537,1.12217906,3324.5,3324.4,7.6139265]
[1641464403784,10.7633,3324.3,3324.0,0.6]
[1641464403987,10.7633,3324.3,3322.9,6.92204]
[1641464403988,12.95,3323.8,3322.1,5.09938005]
[1641464404189,1.50514,3323.2,3322.1,5.09938005]
[1641464404382,5.83997714,3323.7,3322.1,5.09938005]
[1641464404383,0.433,3323.7,3322.1,5.09938005]
[1641464404586,0.75278,3322.7,3322.1,5.09938005]
[1641464404782,1.18576,3323.7,3322.1,5.09938005]
[1641464404783,0.433,3322.8,3322.2,3.23523804]
[1641464404983,0.3,3322.7,3322.2,3.24798493]
[1641464405183,0.433,3322.8,3322.7,1.12325126]
[1641464405391,2.23862,3322.8,3322.7,1.12325126]
[1641464405583,2.23862,3322.8,3322.7,1.13234603]
[1641464406182,2.20692,3322.8,3322.7,1.13234603]
[1641464406383,0.69039,3323.0,3322.7,1.13234603]
[1641464406588,2.16495761,3323.0,3322.7,1.13234603]
[1641464406783,2.16495761,3323.0,3322.8,0.00852635]
[1641464407435,2.16495761,3323.0,3322.2,2.01568397]
[1641464407436,1.47456761,3323.0,3322.2,2.00293708]
[1641464407632,0.75265,3322.6,3322.3,0.00284212]
[1641464408037,2.55808,3322.6,3322.3,0.00284212]
[1641464409032,3.25815,3322.5,3322.2,2.00293708]
[1641464409237,3.25928684,3322.5,3322.2,2.00293708]
[1641464409434,2.25928684,3322.5,3322.2,2.00293708]
[1641464409635,3.25928684,3322.5,3322.2,2.00293708]
[1641464410037,1.18584,3322.4,3322.0,0.08176311]
[1641464410235,0.7529,3322.3,3322.0,0.08176311]
[1641464410435,0.7529,3322.3,3321.3,0.00256183]
[1641464410436,8.8,3322.1,3321.3,0.00256183]
[1641464410635,0.75298,3321.8,3321.3,0.00256183]
[1641464410844,0.433,3321.7,3321.4,0.00397896]
[1641464411041,2.48602,3321.7,3321.3,0.00256183]
[1641464411298,2.48602,3321.7,3321.0,0.66484]
[1641464411300,11.20113684,3321.6,3321.0,0.66484]
[1641464411501,10.15,3321.0,3319.7,1.75281791]
[1641464411699,5.412,3320.7,3319.7,1.75281791]
[1641464411902,3.44629,3320.6,3319.7,1.75281791]
[1641464412101,3.44629,3320.6,3317.6,5.5141]
[1641464412102,0.66484,3320.0,3317.6,5.5141]
[1641464412301,0.01261468,3319.0,3317.3,3.0127578]
[1641464412501,0.01261468,3319.0,3317.7,0.02103167]
[1641464412502,0.433,3318.9,3317.7,0.02103167]
[1641464413099,0.433,3318.9,3318.4,6.81659224]
[1641464413502,0.433,3318.9,3318.5,0.01648428]
[1641464413701,12.95,3318.8,3318.4,6.78307652]
[1641464413899,12.95,3318.8,3318.1,0.81589705]
[1641464413900,12.95,3318.6,3318.1,0.21153357]
[1641464414101,1.21986261,3318.7,3317.9,8.5207403]
[1641464414102,10.45,3318.4,3317.9,8.5207403]
[1641464414299,12.95,3318.2,3317.9,1.49123557]
[1641464414504,11.833,3318.1,3318.0,0.00113685]
[1641464414702,12.833,3318.1,3318.0,0.00113685]
[1641464414972,12.86417979,3318.1,3318.0,0.00113685]
[1641464415155,1.47102826,3318.1,3316.8,0.08558948]
[1641464415356,0.43982109,3318.1,3316.8,0.08558948]
[1641464415555,0.00625266,3318.0,3316.8,0.08558948]
[1641464415757,0.00625266,3318.0,3317.7,1.21431838]
[1641464416062,0.00568424,3317.9,3317.7,1.21431838]
[1641464416256,8.424e-05,3317.9,3317.7,1.21431838]
[1641464416457,2.95222618,3318.7,3317.7,1.21431838]
[1641464416458,2.95222618,3318.7,3317.8,13.39581385]
[1641464416657,3.86635281,3319.0,3318.0,12.95]
[1641464416857,3.86635281,3319.0,3318.1,12.95]
[1641464417064,3.86635281,3319.0,3318.2,1.09153936]
[1641464417257,0.00454738,3318.9,3318.3,3.16404932]
[1641464417758,0.00397896,3318.8,3318.3,3.16404932]
[1641464417958,0.00397896,3318.8,3318.5,0.753257]
[1641464418157,0.03907109,3320.1,3318.7,12.95]
[1641464418357,3.09037067,3321.0,3318.8,4.8194317]
[1641464418358,0.35284,3320.0,3318.8,4.8194317]
[1641464418558,0.35284,3320.0,3319.3,1.1192379]
[1641464418785,1.50616,3321.6,3319.5,12.95]
[1641464418786,0.03480902,3321.6,3319.5,12.95]
[1641464418985,0.01202615,3321.7,3319.6,3.67269797]
[1641464419284,0.01202615,3321.7,3320.2,0.7528783]
[1641464419285,0.01364216,3321.1,3320.2,0.7528783]
[1641464419483,0.01364216,3321.1,3320.3,1.71436374]
[1641464419689,0.01307374,3321.0,3320.3,1.71436374]
[1641464419891,0.01307374,3321.0,3320.4,1.38797462]
[1641464420085,0.01250531,3320.9,3320.4,1.38797462]
[1641464420284,0.01250531,3320.9,3320.6,0.7527931]
[1641464420487,0.01193689,3320.8,3320.4,3.25549992]
[1641464420785,0.051417,3322.3,3320.4,3.25549992]
[1641464420786,0.01136847,3320.7,3320.4,3.25549992]
[1641464421187,0.01080004,3320.6,3320.2,1.50547]
[1641464421585,0.01023162,3320.5,3320.3,1.04205429]
[1641464421785,0.01023162,3320.5,3320.4,13.262]
[1641464421986,0.11261049,3322.4,3320.4,7.80800266]
[1641464422191,0.01226226,3322.2,3321.6,1.01653093]
[1641464422644,0.01226226,3322.2,3320.9,0.362]
[1641464422843,0.01226226,3322.2,3321.0,2.01297186]
[1641464424045,0.01226226,3322.2,3321.0,0.47919314]
[1641464424247,0.01169956,3322.5,3321.1,0.362]
[1641464424646,0.01169956,3322.5,3321.5,0.7525]
[1641464424848,0.01169956,3322.5,3321.7,1.20742535]
[1641464425146,0.01169956,3322.5,3321.8,0.362]
[1641464425548,3.40792228,3321.9,3321.8,0.362]
[1641464425745,3.40792228,3321.9,3321.0,0.362]
[1641464425947,3.70792228,3321.9,3321.0,0.362]
[1641464426187,7.52725409,3321.8,3321.0,0.362]
[1641464426587,0.0170527,3321.7,3320.0,3.043]
[1641464426785,0.0170527,3321.7,3319.8,0.362]
[1641464426989,0.01648428,3321.6,3321.0,1.68877916]
[1641464427187,7.50963297,3321.3,3319.8,0.362]
[1641464427588,0.01421058,3321.2,3319.8,1.75674122]
[1641464427987,0.01364216,3321.1,3319.4,0.13819997]
[1641464428188,0.01272296,3321.0,3319.4,0.13819997]
[1641464428387,2.08287477,3320.8,3319.4,0.13819997]
[1641464428594,2.08287477,3320.8,3318.7,5.9394]
[1641464428595,6.44760895,3320.2,3318.7,5.9394]
[1641464428887,6.44760895,3320.2,3318.5,1.5062875]
[1641464428888,0.00795793,3320.1,3318.5,1.5062875]
[1641464429087,0.00795793,3320.1,3318.5,2.5124973]
[1641464429288,8.05951119,3319.9,3318.7,1.84688333]
[1641464429489,8.35951119,3319.9,3319.0,1.30989446]
[1641464429689,0.00625266,3319.8,3319.0,1.30989446]
[1641464430133,0.00568423,3319.7,3319.0,1.30989446]
[1641464430535,8.35951119,3319.9,3318.5,1.5062875]
[1641464430844,0.00625266,3319.8,3318.5,1.5062875]
[1641464431035,6.42845566,3319.2,3318.5,1.5062875]
[1641464431236,6.72845566,3319.2,3318.4,1.362]
[1641464431537,6.72845566,3319.2,3318.4,0.362]
[1641464431538,0.00227369,3319.1,3318.4,0.362]
[1641464431733,0.00227369,3319.1,3318.7,2.25515301]
[1641464431933,0.00170527,3319.0,3318.7,2.25515301]
[1641464432135,0.00170527,3319.0,3318.7,0.0059526]
[1641464432335,3.40792228,3319.1,3318.7,0.0059526]
[1641464432336,0.00113684,3318.9,3318.7,0.0059526]
[1641464432542,0.01284909,3318.9,3318.7,0.0059526]
[1641464432739,0.01171225,3318.9,3318.7,0.0059526]
[1641464432938,0.18855283,3318.4,3318.1,1.13819997]
[1641464433135,0.03855283,3318.4,3318.2,1.03631977]
[1641464433336,0.03855283,3318.4,3318.2,1.81010264]
[1641464434404,0.03855283,3318.4,3318.3,9.28286054]
[1641464434809,0.03855283,3318.4,3318.3,2.88286054]
[1641464435607,3.86821921,3318.4,3318.3,2.88286054]
[1641464435805,6.42845566,3319.2,3318.3,2.88286054]
[1641464435806,6.06567318,3319.2,3318.7,0.753038]
[1641464436004,9.64540333,3320.4,3318.6,3.0121559]
[1641464436005,6.06567318,3319.4,3319.1,0.01271159]
[1641464436205,6.06567318,3319.4,3319.2,0.362]
[1641464436610,6.06567318,3319.4,3319.3,14.89872298]
[1641464437010,6.06794687,3319.4,3319.3,2.99872298]
[1641464437213,8.05951119,3319.9,3319.4,12.9]
[1641464437435,8.05951119,3320.6,3320.4,1.13492275]
[1641464437636,8.05951119,3320.6,3319.9,0.75288]
[1641464438133,8.05951119,3320.9,3319.9,1.1148763]
[1641464438342,8.05951119,3320.9,3319.9,1.17040966]
[1641464438635,8.05951119,3320.9,3320.3,1.01868728]
[1641464439034,7.90951119,3320.9,3320.4,2.04781456]
[1641464439433,7.91860597,3321.0,3320.0,0.75286]
[1641464439834,0.00852635,3320.9,3319.9,0.362]
[1641464440233,0.00795793,3320.8,3319.9,0.362]
[1641464440635,0.00738951,3320.7,3319.9,0.362]
[1641464441035,1.45089326,3320.1,3319.9,0.362]
[1641464441491,0.00341054,3320.0,3319.9,0.362]
[1641464441690,0.00341054,3320.0,3319.1,1.51869159]
[1641464441894,0.00341054,3320.0,3318.8,0.00113685]
[1641464442100,0.00341054,3320.0,3319.2,0.00113685]
[1641464442101,0.00284212,3319.9,3319.2,0.00113685]
[1641464442391,0.0022737,3319.8,3318.6,0.00454739]
[1641464442590,2.06604017,3319.4,3318.6,0.00454739]
[1641464442996,3.81693343,3319.4,3319.3,0.00121687]
[1641464443192,1.75089326,3319.4,3319.3,0.00121687]
[1641464443793,0.3,3319.4,3319.3,0.00121687]
[1641464444101,2.90349178,3319.7,3319.3,0.00121687]
[1641464444393,0.00113685,3319.6,3319.3,0.00121687]
[1641464445644,1.71787469,3319.5,3319.3,0.00121687]
[1641464445937,0.3,3319.4,3319.3,0.00121687]
[1641464446747,17.84607905,3319.4,3319.3,1.687e-05]
[1641464446939,0.75373,3319.1,3318.6,0.00454739]
[1641464447140,0.41261049,3319.0,3318.6,0.00454739]
[1641464447336,0.41261049,3319.0,3316.8,0.01477901]
[1641464447538,5.68510038,3319.0,3316.8,0.01477901]
[1641464447737,1.80133043,3317.9,3316.8,0.01477901]
[1641464447937,2.10133043,3317.9,3316.8,0.01477901]
[1641464448138,0.3,3317.9,3316.8,0.01477901]
[1641464448537,1.09346925,3318.0,3316.6,0.01591586]
[1641464448789,0.3,3318.0,3316.6,0.01591586]
[1641464448984,0.2084,3318.1,3316.6,0.01591586]
[1641464448985,1.74672456,3317.6,3316.6,0.01591586]
[1641464450089,3.41186506,3317.5,3316.6,0.01591586]
[1641464450388,3.41186506,3317.5,3316.8,2.01169849]
[1641464450788,3.41186506,3317.5,3316.9,0.01421059]
[1641464451189,3.41186506,3317.5,3316.6,0.01591586]
[1641464451589,1.0,3317.4,3316.6,0.01591586]
[1641464451986,0.3,3317.4,3316.6,0.01591586]
[1641464452189,1.44672456,3317.2,3316.6,0.01591586]
[1641464452435,3.58468039,3317.2,3316.6,0.01591586]
[1641464452634,3.88468039,3317.2,3316.6,0.01591586]
[1641464452835,1.74672456,3317.2,3316.6,0.01591586]
[1641464453236,1.44672456,3317.1,3316.6,0.01591586]
[1641464453641,1.44672456,3317.1,3316.7,0.00149034]
[1641464454037,4.85858962,3317.1,3316.8,0.01477901]
[1641464454436,6.9231278,3317.1,3316.8,0.01477901]
[1641464454837,6.9231278,3317.1,3316.7,6.935e-05]
[1641464454838,12.9,3317.0,3316.7,6.935e-05]
[1641464455040,13.9,3317.0,3316.7,6.935e-05]
[1641464455239,13.90113685,3317.0,3316.7,6.935e-05]
[1641464455939,13.90113685,3317.0,3314.3,0.01275404]
[1641464455940,0.75427,3316.5,3314.3,0.01275404]
[1641464456199,0.75427,3316.5,3314.4,5.604]
[1641464456200,4.60574846,3316.4,3314.4,5.604]
[1641464456391,0.7543287,3316.2,3315.2,0.00909477]
[1641464456690,0.01238734,3315.9,3315.2,0.00909477]
[1641464456891,12.9,3315.3,3315.2,0.00909477]
[1641464457094,14.2,3315.3,3315.2,0.00909477]